[Event "XV American Continental 2022"]
[Site "San Salvador"]
[Date "2022.05.07"]
[Round "8.9"]
[White "Noboa Silva, Kevin"]
[Black "Proudian, Armen"]
[Result "0-1"]
[ECO "E49"]
[WhiteElo "2323"]
[BlackElo "2418"]
[Annotator "TA"]
[PlyCount "120"]
[EventDate "2022.05.02"]
[EventCountry "ESA"]
[SourceTitle "playchess.com"]
[Source "ChessBase"]
[SourceQuality "1"]
[TimeControl "40/5400+30:1800+30"]

{[%evp 18,120,0,0,0,-8,39,31,62,56,63,20,25,16,75,20,5,-24,14,20,66,65,139,145,145,135,129,135,145,93,155,152,305,304,292,287,300,90,127,26,42,44,55,35,33,18,16,0,4,-44,-32,-159,-179,-348,-99,-348,-339,-287,-320,-302,-245,-952,-808,-600,-600,-567,-513,-1069,-1046,-1107,-1077,-1060,-1067,-815,-690,-3847,-2368,-2154,-1967,-5539,-5568,-3503,-2384,-1308,-823,-29959,-29955,-29964,-29958,-29975,-29976,-29977,-29973,-29978,-29979,-29979,-29980,-29982,-29983,-29982,-29983,-29983,-29984,-29984,-29984]} 1. d4 {[%emt 0:00:12]} Nf6 {[%emt 0:00:24]} 2. c4 {[%emt 0:00:28]} e6 {[%emt 0:00:33]} 3. Nc3 {[%emt 0:00:27]} Bb4 {[%emt 0:00:42]} 4. e3 {[%emt 0:00:42]} O-O {[%emt 0:00:51]} 5. Bd3 {[%emt 0:00:30]} d5 {[%emt 0:00:37]} 6. a3 {[%emt 0:00:21]} Bxc3+ {[%emt 0:00:59]} 7. bxc3 {[%emt 0:00:15]} dxc4 {[%emt 0:00:27]} 8. Bxc4 {[%emt 0:00:23]} c5 {[%emt 0:00:37]} 9. Ne2 {[%emt 0:00:42]} Qc7 {[%emt 0:00:42]} 10. Ba2 {[%emt 0:00:34]} b6 {[%emt 0:04:11] E49: Nimzo-Indian: Rubinstein: 5 Bd3 d5 6 a3 Bxc3+ 7 bxc3.} 11. O-O {[%emt 0:01:19]} e5 {[%emt 0:08:00]} (11... Nc6 $11 {is more appropriate.}) 12. d5 $14 {[%emt 0:11:13]} c4 {[%emt 0:06:30] White is slightly better.} 13. Ng3 $1 {[%emt 0:05:54] [#]} Na6 $146 {[%emt 0:16:34]} ({Predecessor:} 13... Nbd7 14. Rb1 Ne8 15. Ne4 Ndf6 16. Nxf6+ Nxf6 17. Rb4 Ba6 18. Bb1 Rad8 19. e4 Nd7 {0-1 (41) Tarasov,M (2315)-Barbitskij,A St Petersburg 1998}) 14. e4 {[%emt 0:03:07]} Nc5 {[%emt 0:02:29]} 15. Qe2 {[%emt 0:15:46]} Nd3 {[%emt 0:03:07]} (15... b5 $1 $11) 16. Bg5 {[%emt 0:03:01]} ({White should play} 16. a4 $16) 16... Ne8 $1 $11 {[%emt 0:05:06]} 17. Rad1 {[%emt 0:07:48]} b5 {[%emt 0:07:21]} 18. Bb1 $36 {[%emt 0:02:07][%mdl 2048] White has good play.} Nf4 {[%emt 0:12:21]} (18... f6 $11 19. Be3 Nd6) 19. Qd2 $14 {[%emt 0:01:44]} f6 {[%emt 0:10:18]} (19... Nd3 $14) 20. Bxf4 $16 {[%emt 0:02:40]} exf4 {[%emt 0:00:07]} 21. Ne2 {[%emt 0:00:35]} Bg4 {[%emt 0:01:36]} 22. f3 {[%emt 0:03:35]} (22. Nxf4 $6 Bxd1 23. Ne6 (23. Rxd1 Qd6 $11) 23... Qe7 24. Rxd1 (24. Nxf8 Bg4 $11) 24... Rf7) 22... Bd7 {[%emt 0:00:19]} 23. Nxf4 {[%emt 0:03:27]} (23. Qxf4 $142 Qc5+ 24. Kh1) 23... Qc5+ {[%emt 0:00:39]} ({Better is} 23... Qd6) 24. Qd4 {[%emt 0:03:05]} Qxa3 {[%emt 0:00:06]} (24... Qxd4+ $16 25. Rxd4 Nd6) 25. d6 $18 {[%emt 0:00:37]} Rc8 {[%emt 0:01:58]} 26. Nd5 {[%emt 0:06:08]} Qxd6 {[%emt 0:02:18]} 27. Qxa7 $2 {[%emt 0:00:11]} (27. e5 $1 $18 {[%cal Re5d6] is the precise move to win.} fxe5 28. Qh4 (28. Qxa7 Rf7 $11)) 27... Rf7 {[%emt 0:05:08][%cal Bf8f7,Bf7d7,Bd7d6][%mdl 32] [#]} 28. Qd4 {[%emt 0:10:24]} (28. Nxf6+ $1 $16 {[%mdl 512]} Qxf6 29. Rxd7) 28... Bc6 $11 {[%emt 0:03:20]} 29. Nb4 {[%emt 0:01:32]} Rd7 {[%emt 0:00:21]} 30. Qxd6 {[%emt 0:01:15]} ({Reject} 30. Nxc6 Rxc6 31. Qd5+ Qxd5 32. Rxd5 Rxd5 33. exd5 Rd6 $11) 30... Rxd6 {[%emt 0:00:22]} 31. e5 {[%emt 0:05:26]} fxe5 {[%emt 0:01:13]} 32. Bf5 {[%emt 0:00:12]} Rc7 {[%emt 0:06:12]} 33. Nxc6 {[%emt 0:00:47]} (33. Rde1 $11 {feels stronger.}) 33... Rcxc6 $15 {[%emt 0:00:09]} 34. Bd7 {[%emt 0:00:13]} (34. Rxd6 $15 Nxd6 35. Be6+ Kf8 36. Ra1) 34... Rxd1 $17 {[%emt 0:00:08]} 35. Bxc6 {[%emt 0:02:33]} (35. Rxd1 Rd6 36. Rxd6 Nxd6 37. Bc6) 35... Rxf1+ $19 {[%emt 0:00:07]} 36. Kxf1 $17 {[%emt 0:00:01][%mdl 4096] Endgame [#] KB-KN} Nc7 {[%emt 0:00:21]} 37. Ke2 {[%emt 0:00:53]} Kf7 {[%emt 0:00:14]} 38. Kd2 {[%emt 0:05:30]} Ke6 {[%emt 0:00:17]} 39. h4 $2 {[%emt 0:00:36]} (39. Be4 h6 40. Bh7) 39... Kd6 {[%emt 0:00:28]} 40. Be4 {[%emt 0:00:06]} h6 {[%emt 0:00:30] Threatens to win with ...Nd5.} 41. Bg6 {[%emt 0:31:14]} Nd5 {[%emt 0:30:59] ...Nf4 is the strong threat.} 42. g3 {[%emt 0:00:10] Inhibits Nf4.} (42. Be8 $142 Kc5 43. g4) 42... Kc5 $19 {[%emt 0:00:44]} 43. Bf7 {[%emt 0:00:00]} b4 {[%emt 0:00:00]} 44. cxb4+ {[%emt 0:00:00]} Nxb4 {[%emt 0:00:00]} 45. Ke3 {[%emt 0:00:00]} c3 {[%emt 0:00:00][%cal Bc4c3,Bc3c2][%mdl 32]} 46. Bb3 {[%emt 0:00:00]} c2 {[%emt 0:00:00]} 47. Kd2 {[%emt 0:00:00]} Kd4 {[%emt 0:00:00]} 48. Bf7 {[%emt 0:00:00]} Nd3 {[%emt 0:00:00]} 49. Kxc2 {[%emt 0:00:00]} Ke3 {[%emt 0:00:00] aiming for ...Ne1+.} ({Worse is} 49... Ne1+ 50. Kd1 Nxf3 51. Ke2 $17) 50. Kc3 {[%emt 0:00:00]} Ne1 {[%emt 0:00:00]} 51. Kc4 {[%emt 0:00:00]} Kxf3 {[%emt 0:00:00] Black mates.} 52. Kd5 {[%emt 0:00:00]} Kxg3 {[%emt 0:00:00]} 53. Kxe5 {[%emt 0:00:00]} Nf3+ {[%emt 0:00:00]} 54. Ke6 {[%emt 0:00:00]} Kxh4 {[%emt 0:01:58]} 55. Be8 {[%emt 0:00:00]} Kg5 {[%emt 0:00:43]} 56. Kd5 {[%emt 0:00:00]} Kf4 {[%emt 0:00:39]} 57. Bg6 {[%emt 0:00:00]} Ne5 {[%emt 0:00:11]} 58. Bh5 {[%emt 0:00:00]} g5 {[%emt 0:00:17][%cal Bg7g5,Bg5g4][%mdl 32]} 59. Be2 {[%emt 0:00:00]} g4 {[%emt 0:00:12]} 60. Kd4 {[%emt 0:00:08]} h5 {[%emt 0:00:24] Quite a comeback for Black.  Weighted Error Value: White=0.67/Black=0.15 (very precise)} 0-1

[Event "XV American Continental 2022"]
[Site "San Salvador"]
[Date "2022.05.07"]
[Round "8.10"]
[White "Jimenez Garcia, Emmanuel"]
[Black "Morales, Carlos"]
[Result "0-1"]
[ECO "A05"]
[WhiteElo "2422"]
[BlackElo "2005"]
[Annotator "TA"]
[PlyCount "76"]
[EventDate "2022.05.02"]
[EventCountry "ESA"]
[SourceTitle "playchess.com"]
[Source "ChessBase"]
[SourceQuality "1"]
[TimeControl "40/5400+30:1800+30"]

{[%evp 18,76,0,-5,68,56,44,0,0,0,0,-55,-58,-48,-57,-72,-93,-66,-82,-95,-94,-122,-96,-112,-120,-117,0,0,0,0,0,-3,0,-54,-37,-42,-60,-122,-90,-124,-129,-460,-331,-268,-62,-80,0,-175,-148,-387,-387,-339,-277,-568,-544,-560,-542,-1259,-1170,-1118,-1044]} 1. Nf3 {[%emt 0:00:00]} Nf6 {[%emt 0:04:48]} 2. g3 {[%emt 0:00:01]} e6 {[%emt 0:00:16]} 3. Bg2 {[%emt 0:00:07]} d5 {[%emt 0:00:07]} 4. d3 {[%emt 0:00:30]} Be7 {[%emt 0:00:39]} 5. Nbd2 {[%emt 0:00:07]} c5 {[%emt 0:00:05]} 6. e4 {[%emt 0:00:14]} Nc6 {[%emt 0:00:06]} 7. O-O {[%emt 0:00:29]} b6 {[%emt 0:01:05]} 8. Re1 {[%emt 0:00:24]} Bb7 {[%emt 0:00:13]} 9. c3 {[%emt 0:02:21]} Qc7 {[%emt 0:00:29]} 10. a3 {[%emt 0:06:28]} Ba6 {[%emt 0:03:05] C00: French: Unusual White 2nd moves.} (10... dxe4 $11 11. dxe4 e5) 11. exd5 $14 {[%emt 0:07:57] [#]} Nxd5 $146 {[%emt 0:01:05]} ({Predecessor:} 11... exd5 12. Ne5 Nxe5 13. Qa4+ b5 14. Qxa6 Rb8 15. Rxe5 Qxe5 16. Qc6+ Kf8 17. Nf3 Qd6 18. Ne5 Qxc6 19. Nxc6 Rb6 20. Nxa7 Ke8 21. Nc8 Rb8 22. Nxe7 Kxe7 23. Bf4 Rbd8 24. Bh3 {½-½ (24) Michalek,J (2346)-Kanovsky,D (2396) Czech Republic 2007}) 12. d4 {[%emt 0:18:07]} O-O {[%emt 0:15:03] The position is equal.} 13. c4 {[%emt 0:09:53]} Nf6 {[%emt 0:00:52]} 14. Ne5 {[%emt 0:03:34]} (14. dxc5 $11 bxc5 15. b3) 14... Nxd4 $15 {[%emt 0:00:59]} 15. Bxa8 {[%emt 0:01:16]} Rxa8 {[%emt 0:01:43]} 16. b3 {[%emt 0:08:23]} Rd8 {[%emt 0:01:08]} 17. Bb2 {[%emt 0:00:50]} Bb7 {[%emt 0:09:36]} 18. Bxd4 {[%emt 0:11:08]} cxd4 {[%emt 0:00:29]} 19. Nd3 {[%emt 0:06:20]} Qc6 {[%emt 0:01:32][%csl Gb7][%cal Rc6h1]} 20. f3 {[%emt 0:00:10] [#]} Ng4 $1 {[%emt 0:03:30][%mdl 512]} 21. Nb4 {[%emt 0:04:58] [#]} Bxb4 {[%emt 0:00:31]} ({Better is} 21... Qc5 $1 $17 {( -> ...d3+)} 22. fxg4 d3+ 23. Kf1 Qd4) 22. axb4 $11 {[%emt 0:00:02] Hoping for b5.} Ne3 {[%emt 0:00:10]} 23. Qb1 {[%emt 0:04:47]} a6 {[%emt 0:01:11]} 24. Qd3 $132 {[%emt 0:00:20][%mdl 2048] White puts up resistance} Rd7 {[%emt 0:04:57]} 25. b5 {[%emt 0:00:08]} ({White should play} 25. Ra2 $11) 25... axb5 $15 {[%emt 0:00:10]} 26. cxb5 {[%emt 0:00:03]} Qd5 {[%emt 0:00:07]} 27. Re2 {[%emt 0:04:28]} (27. Ra7 $15) 27... f5 {[%emt 0:00:38][%mdl 1024] Black has strong compensation.} 28. Ra7 {[%emt 0:04:26]} Rc7 {[%emt 0:00:59]} 29. Rf2 $2 {[%emt 0:01:46][%mdl 8192]} (29. Rxb7 $17 Rxb7 30. Nc4) 29... Rc3 {[%emt 0:08:28]} 30. Qb1 {[%emt 0:00:04]} Rc2 {[%emt 0:00:28] Prevents Nc4.} (30... h6 $19 {Strongly threatening ...Kh7.} 31. Nf1 {[#]} Ng4 $1 32. Rxb7 Nxf2 33. Rb8+ Kh7 34. Kxf2 Qxf3+ 35. Kg1 Qe2) 31. Qe1 {[%emt 0:00:37]} Rc3 {[%emt 0:01:57] Black is much more active.} ({Black should try} 31... h6 $17 {aiming for ...Rc3.} 32. Nf1 (32. Nc4 $2 Qxf3 33. Rxf3 Rg2+ 34. Kh1 Bxf3 $19) 32... Rc3 33. Nxe3 Rxe3) 32. b4 $2 {[%emt 0:01:56]} (32. Qb1 $1 $11 {and White is okay.}) 32... h6 {[%emt 0:07:30] ...Kh7 is the strong threat.} 33. Qb1 $2 {[%emt 0:01:04]} (33. Nf1 $17) 33... Kh7 $19 {[%emt 0:01:23]} 34. Qe1 {[%emt 0:02:26]} Nc2 {[%emt 0:05:13][%cal Be3c2,Bc2d4,Bd4e2][%mdl 32]} 35. Qe2 {[%emt 0:00:54]} (35. Qb1 {was called for.}) 35... d3 {[%emt 0:01:12] Black is clearly winning.} 36. Qf1 {[%emt 0:00:02]} Nd4 {[%emt 0:00:54]} 37. Nb1 {[%emt 0:00:43]} Ne2+ {[%emt 0:01:02]} 38. Kg2 {[%emt 0:00:02]} Rc1 {[%emt 0:00:34] Weighted Error Value: White=0.66/Black=0.39} 0-1

[Event "XV American Continental 2022"]
[Site "San Salvador"]
[Date "2022.05.07"]
[Round "8.11"]
[White "Lorenzana, Wilson Estuardo"]
[Black "Thavandiran, Shiyam"]
[Result "0-1"]
[ECO "C11"]
[WhiteElo "2170"]
[BlackElo "2399"]
[Annotator "TA"]
[PlyCount "92"]
[EventDate "2022.05.02"]
[EventCountry "ESA"]
[SourceTitle "playchess.com"]
[Source "ChessBase"]
[SourceQuality "1"]
[TimeControl "40/5400+30:1800+30"]

{[%evp 21,92,5,7,0,21,12,19,0,0,0,8,-6,-7,-7,0,-14,-18,-55,0,-21,-18,-26,-22,-42,-17,-61,-70,-156,-153,-155,-139,-117,-122,-121,-104,-112,-12,-12,-12,-12,0,-47,-8,-10,0,-53,0,-8,0,0,0,-8,0,0,0,0,0,0,0,-29,-15,-841,-827,-769,-648,-2464,-2443,-2232,-2136,-29985,-29986,-29986,-29987]} 1. e4 {[%emt 0:03:46]} e6 {[%emt 0:00:08]} 2. d4 {[%emt 0:00:28]} d5 {[%emt 0:00:05]} 3. Nc3 {[%emt 0:00:10]} Nf6 {[%emt 0:00:07]} 4. Bg5 {[%emt 0:00:09]} dxe4 {[%emt 0:00:14]} 5. Nxe4 {[%emt 0:00:25]} Nbd7 {[%emt 0:00:22]} 6. Nf3 {[%emt 0:02:06]} h6 {[%emt 0:00:11]} 7. Nxf6+ {[%emt 0:04:37]} Nxf6 {[%emt 0:00:09]} 8. Bh4 {[%emt 0:00:07]} c5 {[%emt 0:00:55]} 9. Bb5+ {[%emt 0:00:41]} Bd7 {[%emt 0:00:09]} 10. Bxd7+ {[%emt 0:00:12]} Qxd7 {[%emt 0:00:06]} 11. Bxf6 {[%emt 0:00:05]} gxf6 {[%emt 0:00:06]} 12. dxc5 {[%emt 0:00:07] [#] C10: French with 3 Nc3: Unusual Black 3rd moves and 3...dxe4.} O-O-O $146 {[%emt 0:16:59]} ({Predecessor:} 12... Qxd1+ 13. Rxd1 Bxc5 14. Ke2 Ke7 15. Rd3 Rhg8 16. g3 Rgd8 17. Rhd1 Rxd3 18. Rxd3 Bb6 19. Rc3 f5 20. Rc4 Kf6 {½-½ (20) Kovchan,A (2545)-Baklan,V (2625) Poltava 2008}) 13. Qxd7+ {[%emt 0:01:21]} Rxd7 {[%emt 0:00:13]} 14. b4 {[%emt 0:12:14] The position is equal.} Rg8 {[%emt 0:13:32]} 15. h3 {[%emt 0:04:27]} b6 {[%emt 0:11:53]} 16. O-O {[%emt 0:00:13]} bxc5 {[%emt 0:00:05]} 17. b5 {[%emt 0:00:05]} Bg7 {[%emt 0:00:27]} 18. a4 {[%emt 0:03:25]} f5 {[%emt 0:02:33]} 19. Rab1 {[%emt 0:00:42]} Bf6 {[%emt 0:05:13]} (19... Kb7 $15) 20. Rfe1 {[%emt 0:06:41]} Kb7 {[%emt 0:02:05]} 21. a5 {[%emt 0:03:58]} Rgd8 {[%emt 0:22:01]} 22. Kf1 {[%emt 0:02:38]} Bc3 {[%emt 0:05:06]} 23. Re3 {[%emt 0:04:46]} Bxa5 {[%emt 0:01:25] Black is more active.} 24. Ne5 {[%emt 0:01:27]} (24. Ra3 $1 $15 Bb4 25. Ra6) 24... Rd1+ $17 {[%emt 0:02:22]} 25. Rxd1 {[%emt 0:00:06]} Rxd1+ {[%emt 0:00:03][%mdl 4096] Endgame KRB-KRN} 26. Ke2 {[%emt 0:00:03]} Rd2+ {[%emt 0:00:10]} 27. Kf3 {[%emt 0:00:04]} Rxc2 {[%emt 0:01:41]} 28. Nxf7 {[%emt 0:00:06]} Kb6 {[%emt 0:03:13]} (28... Rc3 $17 {Hoping for ...Kb6.} 29. Nxh6 c4) 29. Rxe6+ $11 {[%emt 0:01:51]} Kxb5 {[%emt 0:00:03] Black wants to play ...c4.} 30. Nxh6 {[%emt 0:00:09]} Rc3+ {[%emt 0:02:40]} 31. Ke2 {[%emt 0:01:42]} (31. Kf4 $1 $11) 31... Rc1 {[%emt 0:03:49]} (31... f4 $5 {[%cal Rf4f3]}) 32. Kf3 {[%emt 0:00:05]} Rc3+ {[%emt 0:00:09]} 33. Ke2 {[%emt 0:00:04]} Rc1 {[%emt 0:01:44] And now ...Re1+ would win.} (33... f4 $5 {[%cal Rf4f3]}) 34. Kf3 {[%emt 0:00:04]} Bc3 {[%emt 0:01:19]} 35. Nxf5 {[%emt 0:02:07]} a5 {[%emt 0:00:07]} 36. Re8 {[%emt 0:00:23]} Kb4 {[%emt 0:03:19]} 37. Rb8+ {[%emt 0:00:19]} Ka3 $1 {[%emt 0:00:10]} 38. Rb5 {[%emt 0:01:19]} Bb4 {[%emt 0:02:00]} 39. g4 {[%emt 0:01:40] Strongly threatening Rb8.} c4 {[%emt 0:01:32] White must now prevent ...c3.} 40. g5 {[%emt 0:04:57]} c3 {[%emt 0:00:30][%mdl 1024] Black has compensation.} 41. h4 $2 {[%emt 0:33:54][%mdl 8192] [#] Now White is beyond hope.} (41. Ne3 $11) 41... Rd1 $1 $19 {[%emt 0:09:41] ...c2 is the strong threat.} ({Stronger than} 41... Rh1 42. Nd4 (42. Ne3 $2 Rh3+ 43. Kg4 Rxe3 $19) 42... Rxh4 43. Ne2 $17) 42. Ne3 {[%emt 0:00:00] [#]} Rd3 $1 {[%emt 0:01:17]} 43. Rb8 {[%emt 0:00:00] Threatens to win with Rc8.} c2 $1 {[%emt 0:00:10]} 44. Rc8 {[%emt 0:00:00]} Bc3 {[%emt 0:00:05]} 45. g6 {[%emt 0:00:00]} c1=Q {[%emt 0:01:06]} 46. g7 {[%emt 0:00:00]} Qh1+ {[%emt 0:00:13] Weighted Error Value: White=0.66/Black=0.11 (very precise)} 0-1

[Event "XV American Continental 2022"]
[Site "San Salvador"]
[Date "2022.05.09"]
[Round "9.1"]
[White "Kaidanov, Gregory"]
[Black "Gareyev, Timur"]
[Result "0-1"]
[ECO "E15"]
[WhiteElo "2556"]
[BlackElo "2565"]
[Annotator "TA"]
[PlyCount "86"]
[EventDate "2022.05.02"]
[EventCountry "ESA"]
[SourceTitle "playchess.com"]
[Source "ChessBase"]
[SourceQuality "1"]
[TimeControl "40/5400+30:1800+30"]

{[%evp 19,86,0,0,0,0,-10,29,-37,0,-49,-52,-70,-16,-13,-14,-27,-25,-31,-31,-35,-19,-28,-22,-23,26,-29,-41,-19,-26,-51,-15,-14,0,-60,0,-33,-2,-3,0,-22,-31,-37,-14,-607,-596,-585,-583,-568,0,0,0,-530,-532,-879,-726,-1800,-148,-1769,-1797,-1729,-1766,-1702,-1660,-1506,-1509,-1310,-1228,-1013,-927]} 1. d4 {[%emt 0:00:06]} Nf6 {[%emt 0:01:40]} 2. c4 {[%emt 0:00:08]} e6 {[%emt 0:00:18]} 3. Nf3 {[%emt 0:03:36]} b6 {[%emt 0:00:40]} 4. g3 {[%emt 0:00:29]} Ba6 {[%emt 0:00:23]} 5. b3 {[%emt 0:00:18]} Bb4+ {[%emt 0:00:55]} 6. Bd2 {[%emt 0:00:10]} Be7 {[%emt 0:00:55]} 7. Nc3 {[%emt 0:00:24]} O-O {[%emt 0:01:10]} 8. Bg2 {[%emt 0:12:40]} c6 {[%emt 0:00:56]} 9. O-O {[%emt 0:05:09]} d5 {[%emt 0:01:25]} 10. Bf4 {[%emt 0:01:30]} Nbd7 {[%emt 0:03:16][%cal Bb8d7,Bd7c5,Bc5d3][%mdl 32]} 11. Rc1 {[%emt 0:02:48] E15: Queen's Indian: 4 g3 sidelines, 4 g3 Ba6 and 4 g3 Bb7 early deviations.} Rc8 {[%emt 0:02:21]} 12. Re1 {[%emt 0:05:01] [#]} Bb4 $146 {[%emt 0:01:48]} ({Predecessor:} 12... b5 13. c5 b4 14. Nb1 Ne4 15. Nfd2 f5 16. Nxe4 dxe4 17. Qd2 e5 18. Be3 exd4 19. Qxd4 Rb8 {1-0 (37) Plat,V (2458)-Roesemann,R (2295) Germany 2016}) 13. Nd2 {[%emt 0:05:55]} (13. a3 $11 Be7 14. Qd3) 13... c5 {[%emt 0:00:34]} 14. dxc5 {[%emt 0:07:01]} (14. e3 $11 {was preferrable.}) 14... Nxc5 $15 {[%emt 0:26:44]} ({Don't take} 14... Rxc5 15. Bd6 $16) 15. cxd5 {[%emt 0:04:24]} exd5 {[%emt 0:08:07]} (15... Nxd5 $15 16. Nxd5 exd5) 16. Bg5 $1 $11 {[%emt 0:02:14] [#]} Nd3 $1 {[%emt 0:04:57]} 17. exd3 {[%emt 0:01:08]} Bxc3 {[%emt 0:03:29]} 18. Bh3 {[%emt 0:05:03]} Rc5 {[%emt 0:05:10]} 19. a3 {[%emt 0:03:26]} h6 {[%emt 0:02:19]} 20. b4 {[%emt 0:02:53]} Rc6 {[%emt 0:00:17]} 21. Bf4 {[%emt 0:01:55]} Bxd3 {[%emt 0:06:00]} (21... d4 {is more appropriate.}) 22. Re3 {[%emt 0:03:12] [#]} (22. Be5 $142 $1 Bxd2 23. Rxc6 Bxe1 24. Bxf6) 22... Bxd2 $1 {[%emt 0:03:06]} 23. Rxc6 {[%emt 0:00:09]} Bxe3 {[%emt 0:00:36]} 24. fxe3 {[%emt 0:04:14]} Bb5 {[%emt 0:10:21]} 25. Rc7 {[%emt 0:02:13]} Ne4 {[%emt 0:03:04]} 26. Bg2 {[%emt 0:06:14]} ({White should play} 26. Qd4 $11) 26... Re8 {[%emt 0:04:49]} ({Black should try} 26... Qf6 $15 27. Qd4 Qxd4 28. exd4 g5) 27. Qd4 {[%emt 0:04:28]} Qf6 {[%emt 0:01:33]} 28. Qxf6 {[%emt 0:06:16]} Nxf6 {[%emt 0:01:35]} 29. Rxa7 {[%emt 0:01:58]} g5 {[%emt 0:00:44]} 30. Bc7 {[%emt 0:01:13] a4 is the strong threat.} d4 {[%emt 0:00:26]} 31. exd4 {[%emt 0:00:44][%mdl 8192]} (31. Bxb6 $11 d3 32. a4) 31... Re1+ $19 {[%emt 0:00:03]} 32. Kf2 {[%emt 0:00:04]} Re2+ {[%emt 0:00:12]} 33. Kg1 {[%emt 0:00:12]} Re1+ {[%emt 0:00:06]} 34. Kf2 {[%emt 0:00:03]} Re2+ {[%emt 0:00:04]} 35. Kg1 {[%emt 0:00:03] [#]} Ng4 $1 {[%emt 0:00:37]} 36. Bb7 {[%emt 0:06:17]} h5 {[%emt 0:01:51]} 37. Kf1 {[%emt 0:04:15] Against Re1+} Nxh2+ {[%emt 0:02:42]} 38. Kg1 {[%emt 0:00:01]} Ng4 {[%emt 0:00:10] Black is clearly winning.} 39. Ra8+ {[%emt 0:00:34]} Kh7 {[%emt 0:00:50]} 40. Kf1 {[%emt 0:00:20] Inhibits Re1+.} Re7+ {[%emt 0:00:36]} 41. Kg2 {[%emt 0:30:04]} Rxc7 {[%emt 0:30:20]} 42. Be4+ {[%emt 0:00:04]} Kg7 {[%emt 0:00:13] ( -> ...Rc1)} 43. a4 {[%emt 0:00:03] [#]} f5 $1 {[%emt 0:01:39] Weighted Error Value: White=0.53/Black=0.31} 0-1

[Event "XV American Continental 2022"]
[Site "San Salvador"]
[Date "2022.05.09"]
[Round "9.2"]
[White "Quesada Perez, Yasser"]
[Black "Swiercz, Dariusz"]
[Result "1/2-1/2"]
[ECO "B51"]
[WhiteElo "2560"]
[BlackElo "2665"]
[Annotator "TA"]
[PlyCount "103"]
[EventDate "2022.05.02"]
[EventCountry "ESA"]
[SourceTitle "playchess.com"]
[Source "ChessBase"]
[SourceQuality "1"]
[TimeControl "40/5400+30:1800+30"]

{[%evp 9,103,2,24,12,16,0,5,13,12,16,8,0,0,0,0,0,6,5,12,0,0,0,0,-24,-20,-73,-73,-79,-77,-75,-71,-67,-71,-69,-71,-69,-80,-66,-62,-68,-56,-61,-61,-57,-49,-49,-49,-53,-45,-46,-36,-37,-26,-37,0,-10,0,0,0,0,0,0,0,0,0,0,0,0,-4,-11,0,0,0,0,0,0,-2,-10,0,0,0,0,0,0,0,0,0,0,0,0,0,0,0,0,0,0]} 1. e4 {[%emt 0:00:03]} c5 {[%emt 0:04:10]} 2. Nf3 {[%emt 0:00:11]} d6 {[%emt 0:00:14]} 3. Bb5+ {[%emt 0:00:09]} Nd7 {[%emt 0:00:05]} 4. Ba4 {[%emt 0:00:15]} Ngf6 {[%emt 0:00:30]} 5. O-O {[%emt 0:00:06]} e6 {[%emt 0:01:12]} (5... a6 $5 {[%cal Rb7b5]} 6. d3 b5 $11) 6. Re1 {[%emt 0:00:27] B51: Sicilian: Moscow Variation (3 Bb5+) without 3...Bd7.} a6 {[%emt 0:01:08] [#] And now ...b5 would win.} 7. c4 {[%emt 0:00:28] Against b5} Be7 {[%emt 0:00:29]} 8. Nc3 {[%emt 0:00:09]} O-O {[%emt 0:00:10]} 9. d4 {[%emt 0:00:13]} cxd4 {[%emt 0:00:11]} 10. Nxd4 {[%emt 0:00:06]} Qc7 {[%emt 0:16:43]} 11. Qe2 {[%emt 0:00:38]} Ne5 {[%emt 0:03:08]} 12. Bb3 $1 {[%emt 0:00:08]} Bd7 {[%emt 0:00:05]} 13. f4 {[%emt 0:00:16]} Nc6 {[%emt 0:02:37]} (13... Qb6 {with more complications.} 14. Be3 Neg4 15. Nf5 Bd8) 14. Nxc6 {[%emt 0:01:30]} Bxc6 {[%emt 0:01:36] [#]} 15. Kh1 $146 {[%emt 0:00:08]} ({Predecessor:} 15. Bd2 Rab8 16. Kh1 b5 17. cxb5 axb5 18. Rac1 Qb7 19. a3 Rfc8 20. h3 Nd7 21. f5 exf5 22. exf5 {1-0 (60) Shuvalova,P (2446)-Protopopova,A (2230) Moscow 2019}) 15... Nd7 {[%emt 0:13:40]} 16. Be3 {[%emt 0:07:34]} Bf6 {[%emt 0:02:26]} 17. Rac1 {[%emt 0:11:12]} (17. Bf2 $11 {remains equal.}) 17... Bxc3 $17 {[%emt 0:09:08]} 18. Rxc3 {[%emt 0:00:01]} Nf6 {[%emt 0:00:11]} 19. Bc2 {[%emt 0:21:18]} Nxe4 {[%emt 0:08:20]} 20. Bxe4 {[%emt 0:00:05]} Bxe4 {[%emt 0:00:02]} 21. Bd4 {[%emt 0:00:10]} f5 {[%emt 0:00:07]} 22. c5 {[%emt 0:00:16]} dxc5 {[%emt 0:01:03]} 23. Bxc5 {[%emt 0:00:23]} Rfd8 {[%emt 0:01:40]} ({Of course not} 23... Qxf4 $6 24. Bxf8 Rxf8 25. Rd1 $11) 24. Qf2 {[%emt 0:01:17]} Rd5 {[%emt 0:16:30]} 25. Bb4 {[%emt 0:02:13]} Qd7 {[%emt 0:02:09]} 26. Rg3 {[%emt 0:00:05]} Rd3 {[%emt 0:00:25]} 27. Bc3 {[%emt 0:01:21]} Rxg3 {[%emt 0:00:04]} 28. Qxg3 {[%emt 0:00:05]} Rd8 {[%emt 0:02:10]} 29. h3 {[%emt 0:02:56]} h6 {[%emt 0:00:18]} 30. Re3 {[%emt 0:02:31]} Kh7 {[%emt 0:00:31]} 31. Qh4 {[%emt 0:07:26]} Rg8 {[%emt 0:10:54]} 32. Rg3 {[%emt 0:00:16] The position is equal.} Qf7 {[%emt 0:00:05]} 33. a3 {[%emt 0:00:13]} Bc6 {[%emt 0:00:35]} 34. Be5 {[%emt 0:01:23]} Bd5 {[%emt 0:02:11]} 35. Kh2 {[%emt 0:00:11]} Be4 {[%emt 0:00:13]} 36. Bc3 {[%emt 0:01:11]} Bd5 {[%emt 0:00:59]} 37. Be5 {[%emt 0:00:06]} Bc6 {[%emt 0:00:02]} 38. Bc3 {[%emt 0:00:26]} Qe8 {[%emt 0:01:25]} 39. Be5 {[%emt 0:00:29]} a5 {[%emt 0:00:06]} 40. Bc3 {[%emt 0:00:19]} a4 {[%emt 0:00:06]} 41. Be5 {[%emt 0:30:07]} Qf7 {[%emt 0:30:51]} 42. Bc3 {[%emt 0:00:06]} Bd5 {[%emt 0:00:00]} 43. Be5 {[%emt 0:00:00]} b5 {[%emt 0:00:00]} 44. Bc3 {[%emt 0:00:00]} Bc4 {[%emt 0:00:00]} 45. Be5 {[%emt 0:00:00]} Bd5 {[%emt 0:00:00]} 46. Bc3 {[%emt 0:00:00]} Ba2 {[%emt 0:00:00]} 47. Bd4 {[%emt 0:00:00]} Bb3 {[%emt 0:00:00]} 48. Be5 {[%emt 0:00:00]} Bc4 {[%emt 0:00:00]} 49. Bc3 {[%emt 0:00:00]} Bd5 {[%emt 0:00:00]} 50. Be5 {[%emt 0:00:00]} Bc4 {[%emt 0:00:00]} 51. Bc3 {[%emt 0:00:00]} Bd5 {[%emt 0:00:00]} 52. Be5 {[%emt 0:00:00] Weighted Error Value: White=0.03 (flawless) /Black=0.03 (flawless)} 1/2-1/2